bitfinex-derivatives/quotes_BTCF0:USTF0_20251023
["timestamp","ask_amount","ask_price","bid_price","bid_amount"]
[1761202382858,0.7216,110270.0,110260.0,0.46304453]
[1761202383065,0.74943889,110280.0,110270.0,0.05851]
[1761202383465,0.76943889,110280.0,110270.0,0.05851]
[1761202385473,0.74943889,110280.0,110270.0,0.05851]
[1761202385868,0.2461,110280.0,110270.0,0.9099727]
[1761202386165,0.2461,110280.0,110270.0,0.81931]
[1761202386470,0.38863889,110280.0,110270.0,0.45851]
[1761202386866,0.38863889,110280.0,110270.0,0.05851]
[1761202387265,0.38863889,110280.0,110270.0,0.05951]
[1761202388675,0.74943889,110280.0,110270.0,0.05951]
[1761202390964,1.35197778,110280.0,110260.0,0.00453453]
[1761202391169,0.50333889,110270.0,110260.0,0.00453453]
[1761202391370,0.50333889,110270.0,110260.0,0.06304453]
[1761202392184,0.14253889,110270.0,110260.0,0.06304453]
[1761202392777,0.50433889,110270.0,110260.0,0.06304453]
[1761202392966,0.50433889,110270.0,110260.0,0.07623162]
[1761202393168,0.3608,110270.0,110260.0,0.06304453]
[1761202393374,0.50333889,110270.0,110260.0,0.06404453]
[1761202393875,0.3608,110270.0,110260.0,0.06404453]
[1761202394271,0.3608,110270.0,110260.0,0.08687847]
[1761202394975,0.50333889,110270.0,110260.0,0.08687847]
[1761202395480,0.3608,110270.0,110260.0,0.08687847]
[1761202395776,0.50333889,110270.0,110260.0,0.06404453]
[1761202395977,0.50333889,110270.0,110260.0,0.08688313]
[1761202396781,0.50333889,110270.0,110260.0,0.06404453]
[1761202397674,0.50333889,110270.0,110260.0,0.08689726]
[1761202398375,0.94333889,110270.0,110260.0,0.04161582]
[1761202398575,0.94333889,110270.0,110240.0,0.05851]
[1761202398875,0.50333889,110250.0,110240.0,0.05851]
[1761202400181,0.50333889,110250.0,110240.0,0.06051]
[1761202401580,0.50333889,110250.0,110240.0,0.06151]
[1761202402073,0.3608,110250.0,110240.0,0.06151]
[1761202402276,0.3608,110250.0,110240.0,0.46151]
[1761202404374,0.50333889,110250.0,110240.0,0.06151]
[1761202405077,0.50333889,110250.0,110240.0,0.003]
[1761202405281,0.50333889,110250.0,110240.0,0.05952]
[1761202405475,0.3608,110250.0,110240.0,0.05952]
[1761202405674,0.50333889,110250.0,110240.0,0.05952]
[1761202409985,0.3608,110250.0,110240.0,0.05952]
[1761202410182,0.50333889,110250.0,110240.0,0.05952]
[1761202410485,0.50333889,110250.0,110240.0,0.07290081]
[1761202410878,0.50333889,110260.0,110240.0,0.07290081]
[1761202411080,0.50333889,110260.0,110250.0,0.05652]
[1761202411081,0.3608,110260.0,110250.0,0.05652]
[1761202411387,0.94966558,110280.0,110270.0,0.05652]
[1761202411686,0.55226558,110280.0,110270.0,0.05652]
[1761202411880,0.50333889,110280.0,110270.0,0.05652]
[1761202412585,0.52333889,110280.0,110270.0,0.05652]
[1761202412775,0.52433889,110280.0,110270.0,0.05652]
[1761202414382,0.52333889,110280.0,110270.0,0.05652]
[1761202414689,0.3608,110280.0,110270.0,0.05652]
[1761202414988,0.40963178,110280.0,110270.0,0.05752]
[1761202415182,0.04883178,110280.0,110270.0,0.5089827]
[1761202415387,0.03255323,110280.0,110270.0,0.9089827]
[1761202415892,0.04883178,110290.0,110280.0,0.1471745]
[1761202416183,0.04883178,110290.0,110280.0,0.5079745]
[1761202416487,0.04883178,110300.0,110290.0,0.05652]
[1761202417088,0.14253889,110300.0,110290.0,0.05652]
[1761202417489,0.15253889,110300.0,110290.0,0.01373]
[1761202418175,0.15253889,110300.0,110290.0,0.05652]
[1761202418374,0.15453889,110300.0,110290.0,0.05652]
[1761202418792,0.15253889,110300.0,110290.0,0.05652]
[1761202419184,0.51333889,110300.0,110290.0,0.03519]
[1761202419586,0.51333889,110300.0,110290.0,0.01373]
[1761202420090,1.05587778,110300.0,110270.0,0.01373]
[1761202420284,0.69471566,110280.0,110270.0,0.01373]
[1761202420585,1.02667778,110280.0,110270.0,0.01318594]
[1761202420991,1.42667778,110280.0,110270.0,0.01318594]
[1761202421387,1.42767778,110280.0,110270.0,0.01318594]
[1761202422086,1.42767778,110280.0,110250.0,0.05652]
[1761202422284,0.50333889,110260.0,110250.0,0.05652]
[1761202423385,0.562185,110260.0,110250.0,0.01373]
[1761202423786,0.40964611,110260.0,110250.0,0.05652]
[1761202423986,0.50333889,110260.0,110250.0,0.05652]
[1761202424789,0.14253889,110260.0,110250.0,0.05652]
[1761202425789,0.50333889,110260.0,110250.0,0.05652]
[1761202426790,0.59982813,110260.0,110250.0,0.05652]
[1761202428699,0.59982813,110270.0,110260.0,0.05652]
[1761202428896,0.60982813,110270.0,110260.0,0.05652]
[1761202429093,0.60982813,110270.0,110260.0,0.03519]
[1761202429688,0.65869545,110270.0,110260.0,0.01373]
[1761202430596,0.65869545,110270.0,110250.0,0.03519]
[1761202430796,0.59982813,110260.0,110250.0,0.05652]
[1761202431191,0.64869545,110260.0,110250.0,0.05652]
[1761202434194,0.65754639,110260.0,110250.0,0.06972355]
[1761202436706,0.71754639,110260.0,110250.0,0.06972355]
[1761202437002,0.71754639,110260.0,110250.0,0.02693355]
[1761202438601,0.70869545,110260.0,110250.0,0.02693355]
[1761202438802,0.70869545,110260.0,110250.0,0.04879355]
[1761202439001,0.70869545,110260.0,110250.0,0.07208355]
[1761202440798,0.71758746,110260.0,110250.0,0.07208355]
[1761202440998,0.70869545,110260.0,110250.0,0.07208355]
[1761202443901,0.40966732,110260.0,110250.0,0.07208355]
[1761202444097,0.70869545,110260.0,110240.0,0.05877]
[1761202444401,0.59982813,110250.0,110240.0,0.07200239]
[1761202446109,0.3608,110250.0,110240.0,0.07200239]
[1761202446297,0.59982813,110250.0,110240.0,0.07300239]
[1761202446501,0.23902813,110250.0,110240.0,0.43480239]
[1761202449114,0.28789545,110250.0,110240.0,0.43480239]
[1761202451713,0.53399545,110250.0,110240.0,0.43480239]
[1761202452216,0.29496732,110250.0,110240.0,0.43380239]
[1761202453212,0.53399545,110250.0,110240.0,0.43480239]
[1761202454418,0.53399545,110250.0,110240.0,0.52549019]
[1761202454616,0.29496732,110250.0,110240.0,0.92549019]
[1761202455716,0.29496732,110250.0,110240.0,0.92449019]
[1761202456813,0.29496732,110250.0,110240.0,0.9112578]
[1761202457115,0.29496732,110250.0,110240.0,0.5112578]
[1761202457815,0.29496732,110250.0,110240.0,0.5122578]
[1761202460311,0.2461,110250.0,110240.0,1.27385598]
[1761202460609,0.2461,110250.0,110240.0,1.26385598]
[1761202461416,0.04886732,110270.0,110260.0,0.1494416]
[1761202461607,0.04886732,110270.0,110260.0,0.5102416]
[1761202462211,0.04886732,110280.0,110270.0,0.05877]
[1761202464420,0.08144802,110280.0,110270.0,0.05877]
[1761202464921,0.32931546,110280.0,110270.0,0.05877]
[1761202465117,0.32047615,110280.0,110270.0,0.05877]
[1761202465418,0.27160883,110280.0,110270.0,0.05877]
[1761202466008,0.28075332,110280.0,110270.0,0.05877]
[1761202466409,0.28075332,110280.0,110270.0,0.1494336]
[1761202466717,0.27160883,110280.0,110270.0,0.1494336]
[1761202468821,0.27160883,110280.0,110270.0,0.05877]
[1761202470024,0.6484268,110290.0,110280.0,0.05668]
[1761202470219,0.95745493,110290.0,110280.0,0.05668]
[1761202470718,0.8324614,110290.0,110280.0,0.05668]
[1761202471223,0.8235153,110290.0,110280.0,0.1473354]
[1761202471417,0.3927153,110290.0,110280.0,0.1473354]
[1761202471620,0.3927153,110290.0,110280.0,0.05668]
[1761202475723,0.40154931,110290.0,110280.0,0.05668]
[1761202480539,0.3927153,110290.0,110280.0,0.05668]
[1761202483133,0.40188137,110290.0,110280.0,0.05668]
[1761202486836,0.89671597,110290.0,110280.0,0.05668]
[1761202487128,1.26413527,110290.0,110260.0,0.05726]
[1761202487330,0.1140346,110270.0,110260.0,0.05726]
[1761202487535,0.4948346,110270.0,110260.0,0.05726]
[1761202487830,0.5888692,110270.0,110260.0,0.05726]
[1761202488033,0.5888692,110270.0,110240.0,0.39774511]
[1761202488034,1.09144121,110270.0,110240.0,0.05668]
[1761202488240,0.2280692,110250.0,110240.0,0.05668]
[1761202488424,0.2380692,110250.0,110240.0,0.05668]
[1761202488738,0.59903064,110250.0,110240.0,0.05668]
[1761202490140,0.59903064,110250.0,110240.0,0.05768]
[1761202490541,0.59903064,110250.0,110240.0,0.05868]
[1761202491535,0.60809169,110250.0,110240.0,0.05868]
[1761202491948,1.12220701,110250.0,110240.0,0.01520599]
[1761202492649,1.00809169,110250.0,110240.0,0.01520599]
[1761202493038,1.36830701,110250.0,110240.0,0.01520599]
[1761202493241,1.36830701,110250.0,110230.0,7.02e-05]
[1761202493242,1.56830701,110250.0,110230.0,7.02e-05]
[1761202493443,0.70314596,110240.0,110230.0,7.02e-05]
[1761202493650,0.78314596,110240.0,110230.0,7.02e-05]
[1761202494849,1.18314596,110240.0,110220.0,0.00453618]
[1761202495049,0.22823064,110230.0,110220.0,0.00453618]
[1761202495252,0.26823064,110230.0,110220.0,0.00453618]
[1761202495446,0.26823064,110230.0,110220.0,0.06091618]
[1761202495647,0.15411532,110230.0,110220.0,0.06091618]
[1761202495957,0.26830084,110230.0,110220.0,0.06091618]
[1761202496144,0.26830084,110230.0,110220.0,0.03967618]
[1761202496654,0.27130084,110230.0,110220.0,0.03967618]
[1761202497152,0.63310084,110230.0,110220.0,0.00453618]
[1761202497343,1.14714596,110230.0,110220.0,0.00453618]
[1761202497745,1.14721616,110230.0,110220.0,0.00453618]
[1761202498043,1.14714596,110230.0,110220.0,0.00453618]
[1761202498447,1.03303064,110230.0,110220.0,0.00453618]
[1761202498847,1.39324596,110230.0,110220.0,0.00453618]
[1761202499155,1.39324596,110230.0,110200.0,0.44139511]
[1761202499358,0.47491532,110220.0,110210.0,0.05638]
[1761202499656,0.51498552,110220.0,110210.0,0.01273]
[1761202499861,0.51498552,110220.0,110200.0,0.44139511]
[1761202500454,0.22823064,110210.0,110200.0,0.44139511]
[1761202500657,0.60910084,110210.0,110200.0,0.01304]
[1761202500850,0.60910084,110210.0,110190.0,0.03663511]
[1761202500851,1.12314596,110210.0,110190.0,0.03663511]
[1761202501154,0.22830084,110200.0,110190.0,0.05904511]
[1761202501356,0.22830084,110200.0,110190.0,0.03514]
[1761202501357,0.26830084,110200.0,110190.0,0.03514]
[1761202501555,0.38241616,110200.0,110190.0,0.03514]
[1761202501954,0.27739069,110200.0,110190.0,0.03514]
[1761202502360,0.26830084,110200.0,110190.0,0.05638]
[1761202502957,0.26830084,110200.0,110190.0,0.08028511]
[1761202503160,0.26830084,110200.0,110190.0,0.08128511]
[1761202503355,1.40231869,110200.0,110160.0,0.03177908]
[1761202503560,0.58903064,110170.0,110150.0,0.08724664]
[1761202503858,0.58910084,110160.0,110150.0,0.08724664]
[1761202505159,0.59836553,110160.0,110150.0,0.05646756]
[1761202505356,0.72248085,110160.0,110150.0,0.05646756]
[1761202505553,0.72241065,110160.0,110150.0,0.05646756]
[1761202505754,0.71314596,110160.0,110150.0,0.05646756]
[1761202505954,0.60809059,110160.0,110150.0,0.05646756]
[1761202506156,0.68221488,110160.0,110150.0,0.05746756]
[1761202506357,0.71478689,110160.0,110150.0,0.05846756]
[1761202506754,0.82890221,110160.0,110150.0,0.05846756]
[1761202506955,0.4774963,110160.0,110150.0,0.05846756]
[1761202507161,0.32674258,110160.0,110150.0,0.05846756]
[1761202508064,0.25261829,110160.0,110150.0,0.05846756]
[1761202508249,0.58910084,110160.0,110150.0,0.05846756]
[1761202508455,1.01356341,110160.0,110150.0,0.00208756]
[1761202508759,1.01356341,110160.0,110140.0,0.01726947]
[1761202508760,1.41356341,110160.0,110140.0,0.01726947]
[1761202509059,0.72746341,110150.0,110130.0,0.03514]
[1761202509357,0.70314596,110140.0,110130.0,0.03514]
[1761202509563,0.74314596,110140.0,110130.0,0.01273]
[1761202509757,1.14314596,110140.0,110120.0,0.05638]
[1761202510060,0.58912268,110130.0,110110.0,0.03514]
[1761202510260,0.70325461,110120.0,110100.0,0.06092112]
[1761202510455,0.11420564,110110.0,110100.0,0.06092112]
[1761202510764,0.14307573,110110.0,110100.0,0.06092112]
[1761202510964,0.50387573,110110.0,110100.0,0.06092112]
[1761202512157,9.032e-05,110110.0,110100.0,0.82172112]
[1761202512664,0.00109032,110110.0,110100.0,0.82172112]
[1761202512962,0.00409032,110110.0,110100.0,0.82172112]
[1761202513164,0.00409032,110110.0,110100.0,0.42172112]
[1761202514055,0.00409032,110110.0,110100.0,0.82172112]
[1761202514861,0.00409032,110110.0,110100.0,1.34550973]
[1761202515065,0.44082981,110160.0,110150.0,0.05638]
[1761202515265,0.57082981,110160.0,110150.0,0.05638]
[1761202515470,0.49979878,110160.0,110150.0,0.05638]
[1761202516066,0.13006744,110160.0,110150.0,0.05638]
[1761202516366,0.63485285,110160.0,110150.0,0.05638]
[1761202517164,0.14405285,110160.0,110150.0,0.05638]
[1761202517964,0.00106744,110160.0,110150.0,0.907942]
[1761202518969,0.50858541,110190.0,110180.0,0.04365]
[1761202519866,0.51858541,110190.0,110180.0,0.04365]
[1761202520270,0.51958541,110190.0,110180.0,0.04365]
[1761202520479,0.15878541,110190.0,110180.0,0.04365]
[1761202520657,0.51958541,110190.0,110180.0,0.04365]
[1761202523062,0.51958541,110190.0,110180.0,0.05655]
[1761202524368,0.54376661,110190.0,110180.0,0.05655]
[1761202524964,0.50958541,110190.0,110180.0,0.05655]
[1761202525266,0.53376661,110190.0,110180.0,0.05655]
[1761202526271,0.53376661,110190.0,110180.0,0.05755]
[1761202526475,0.53276661,110190.0,110180.0,0.05855]
[1761202528376,0.56533862,110190.0,110180.0,0.05855]
[1761202528670,0.56533862,110190.0,110180.0,0.05755]
[1761202528873,0.56544391,110190.0,110180.0,0.05855]
[1761202529374,0.54115742,110190.0,110180.0,0.05855]
[1761202530171,0.18035742,110190.0,110180.0,0.05855]
[1761202530377,0.17835742,110190.0,110180.0,0.5090875]
[1761202530570,0.03537201,110190.0,110180.0,0.5100875]
[1761202531369,0.02712381,110190.0,110180.0,0.41935]
[1761202531569,0.17835742,110190.0,110180.0,0.41935]
[1761202534279,0.17835742,110190.0,110180.0,0.5100875]
[1761202534576,0.03537201,110190.0,110180.0,0.5100875]
[1761202535279,0.03537201,110190.0,110180.0,1.1900875]
[1761202535280,0.05166732,110190.0,110180.0,1.1900875]
[1761202535680,0.08418359,110190.0,110180.0,1.1900875]
[1761202536381,0.08419607,110190.0,110180.0,1.19893061]
[1761202537085,0.08419607,110190.0,110180.0,0.91893061]
[1761202537380,0.08419607,110190.0,110180.0,1.22893061]
[1761202537976,0.03532875,110190.0,110180.0,1.22893061]
[1761202538276,0.03532875,110190.0,110180.0,1.37191602]
[1761202538482,0.06518678,110210.0,110200.0,0.01291]
[1761202538677,0.06518678,110210.0,110200.0,0.42007]
[1761202538883,0.06518678,110210.0,110200.0,0.510791]
[1761202539385,0.06518678,110210.0,110200.0,0.42007]
[1761202539774,0.20817219,110210.0,110200.0,0.42007]
[1761202541682,0.92378541,110210.0,110200.0,0.05927]
[1761202541884,1.00519184,110210.0,110200.0,0.01291]
[1761202542088,1.00519184,110210.0,110200.0,0.05927]
[1761202542986,0.92378541,110210.0,110200.0,0.05927]
[1761202543284,1.03736964,110210.0,110200.0,0.05927]
[1761202545788,0.11358423,110210.0,110200.0,0.8107873]
[1761202545983,0.11358423,110210.0,110200.0,0.42007]
[1761202546293,0.58530552,110220.0,110210.0,0.05927]
[1761202546484,0.61736964,110220.0,110210.0,0.05927]
[1761202546882,0.50378541,110220.0,110210.0,0.05927]
[1761202547581,0.50478541,110220.0,110210.0,0.05927]
[1761202548092,0.50578541,110220.0,110210.0,0.05927]
[1761202548685,0.002,110220.0,110210.0,0.5107771]
[1761202548885,0.11558423,110220.0,110210.0,0.5107771]
[1761202552188,0.11558423,110220.0,110210.0,0.42007]
[1761202552886,0.35474619,110220.0,110210.0,0.42007]
[1761202553091,0.71554619,110220.0,110210.0,0.05927]
[1761202553281,0.68350275,110220.0,110210.0,0.05927]
[1761202554185,0.70765275,110220.0,110210.0,0.00301322]
[1761202554384,0.62611196,110220.0,110210.0,0.02599322]
[1761202554586,0.73969619,110220.0,110210.0,0.02599322]
[1761202555281,0.12115423,110220.0,110210.0,0.89136022]
[1761202555686,0.14408423,110220.0,110210.0,0.80065322]
[1761202555881,0.14408423,110220.0,110210.0,0.89136022]
[1761202557391,0.14208423,110220.0,110210.0,0.89136022]
[1761202557593,0.14208423,110220.0,110210.0,0.89236022]
[1761202557995,0.14208423,110220.0,110210.0,0.89136022]
[1761202558199,0.1100537,110220.0,110210.0,0.89236022]
[1761202558390,0.11005569,110220.0,110210.0,0.89236022]
[1761202560303,0.11005569,110220.0,110210.0,0.80165322]
[1761202560891,0.11005569,110220.0,110210.0,0.89236052]
[1761202561999,0.17530639,110220.0,110210.0,0.89236052]
[1761202562296,0.0937507,110220.0,110210.0,0.89236052]
[1761202563701,0.0937507,110220.0,110210.0,0.80165322]
[1761202564392,0.0937507,110220.0,110210.0,0.89236052]
[1761202565098,0.0700507,110230.0,110220.0,0.1490691]
[1761202565297,0.0652507,110240.0,110230.0,0.1490609]
[1761202565502,0.0652507,110240.0,110230.0,0.8198609]
[1761202565692,0.1097407,110250.0,110240.0,0.1490527]
[1761202565893,0.1097407,110250.0,110240.0,0.41917]
[1761202566295,0.04449,110250.0,110240.0,0.70917]
[1761202566494,0.04449,110250.0,110240.0,0.41917]
[1761202567296,0.04549,110250.0,110240.0,0.41917]
[1761202567603,0.04649,110250.0,110240.0,0.41917]
[1761202567993,0.02256,110250.0,110240.0,0.5098527]
[1761202568193,0.001,110250.0,110240.0,0.5098527]
[1761202568401,0.001,110250.0,110240.0,0.7998527]
[1761202568595,0.69453196,110250.0,110240.0,0.38378]
[1761202568902,0.01301,110240.0,110230.0,0.41917]
[1761202569101,0.29666196,110240.0,110230.0,0.41917]
[1761202569706,0.28365196,110240.0,110230.0,0.41917]
[1761202578811,0.65746196,110240.0,110230.0,0.04451]
[1761202579113,0.68746196,110240.0,110230.0,0.04451]
[1761202580615,0.68746196,110240.0,110230.0,0.02298]
[1761202580915,0.68746196,110240.0,110230.0,0.04451]
[1761202582306,1.08746196,110240.0,110220.0,0.01386]
[1761202582511,0.05542,110220.0,110210.0,0.04451]
[1761202582717,0.05229,110210.0,110200.0,0.05724]
[1761202582926,0.29145196,110210.0,110200.0,0.05724]
[1761202584831,0.28157196,110210.0,110200.0,0.05724]
[1761202585433,0.28157196,110210.0,110200.0,0.41804]
[1761202585625,0.28281196,110220.0,110210.0,0.05654]
[1761202586332,0.29269196,110220.0,110210.0,0.0428]
[1761202586533,0.65349196,110220.0,110210.0,0.0428]
[1761202588534,0.65349196,110220.0,110200.0,0.37466]
[1761202588535,0.05666,110210.0,110200.0,0.4036]
[1761202588736,0.28281196,110210.0,110200.0,0.41734]
[1761202589034,0.60305196,110210.0,110200.0,0.41734]
[1761202589428,0.34221,110210.0,110200.0,0.5080558]
[1761202589728,0.96385196,110220.0,110210.0,0.05654]
[1761202591834,0.60305196,110220.0,110210.0,0.41734]
[1761202593329,0.36389,110220.0,110210.0,0.5080476]
[1761202593536,1.20995196,110230.0,110220.0,0.05654]
[1761202595232,0.84915196,110230.0,110220.0,0.05654]
[1761202596226,0.88163142,110230.0,110220.0,0.05654]
[1761202596623,0.89464142,110230.0,110210.0,0.41734]
[1761202596935,0.28281196,110220.0,110210.0,0.41734]
[1761202598339,0.68910142,110220.0,110210.0,0.0428]
[1761202598637,0.70553668,110220.0,110200.0,0.41734]
[1761202598839,0.30363085,110210.0,110200.0,0.41734]
[1761202599028,0.32531085,110210.0,110200.0,0.41734]
[1761202601241,0.32531085,110210.0,110200.0,0.5080563]
[1761202601538,0.32531085,110210.0,110200.0,0.41734]
[1761202602041,0.64555085,110210.0,110200.0,0.41734]
[1761202602545,0.61293196,110210.0,110200.0,0.41734]
[1761202602737,0.64555085,110210.0,110200.0,0.41734]
[1761202603042,0.37381,110220.0,110200.0,0.41734]
[1761202603043,0.03261889,110220.0,110210.0,0.1472471]
[1761202603341,0.07626889,110230.0,110220.0,0.1472389]
[1761202603545,0.07626889,110230.0,110220.0,0.7580389]
[1761202604632,0.07626889,110230.0,110220.0,0.5080389]
[1761202605444,0.07626889,110230.0,110220.0,0.5090389]
[1761202605943,0.04365,110230.0,110220.0,0.5090389]
[1761202607141,0.04365,110230.0,110220.0,0.41834]
[1761202607543,0.07626889,110230.0,110220.0,0.41834]
[1761202608144,0.04365,110230.0,110220.0,0.41834]
[1761202608344,0.07626889,110230.0,110220.0,0.41834]
[1761202610741,0.05458889,110230.0,110220.0,0.7890391]
[1761202611043,0.03261889,110230.0,110220.0,0.7890391]
[1761202612244,0.07626889,110230.0,110220.0,0.41834]
[1761202613549,0.07626889,110230.0,110220.0,0.05754]
[1761202613848,0.21892202,110230.0,110220.0,0.05754]
[1761202615348,0.21892202,110230.0,110220.0,0.41834]
[1761202616746,0.37959992,110250.0,110220.0,0.41834]
[1761202617049,0.01348,110270.0,110260.0,0.05826]
[1761202617251,0.47853313,110270.0,110260.0,0.77986]
[1761202617443,0.48853313,110270.0,110260.0,0.77986]
[1761202617639,0.05958,110260.0,110250.0,0.39664]
[1761202617842,0.22223313,110260.0,110250.0,0.04503]
[1761202618651,0.3087888,110260.0,110250.0,0.04503]
[1761202619255,0.08058,110260.0,110250.0,0.04503]
[1761202619455,0.3087888,110260.0,110250.0,0.04503]
[1761202620159,0.01369,110250.0,110240.0,0.40583]
[1761202620456,0.4961644,110250.0,110240.0,0.40583]
[1761202620657,0.52469093,110250.0,110240.0,0.40583]
[1761202620855,0.20221093,110250.0,110240.0,0.40583]
[1761202621045,0.20221093,110250.0,110230.0,0.41906]
[1761202621046,0.05958,110240.0,110230.0,0.41906]
[1761202621251,0.20221093,110240.0,110230.0,0.41906]
[1761202621652,0.20221093,110240.0,110230.0,0.40583]
[1761202621849,0.62221093,110240.0,110230.0,0.02261]
[1761202622054,0.05958,110230.0,110220.0,0.5097595]
[1761202622254,0.38202,110230.0,110220.0,0.5097595]
[1761202623752,0.02322,110230.0,110220.0,0.5097595]
[1761202624261,0.04589,110230.0,110220.0,0.5107595]
[1761202624452,0.36857,110230.0,110220.0,0.5107595]
[1761202624853,0.36857,110230.0,110220.0,0.5097595]
[1761202625355,0.36857,110230.0,110220.0,0.5107595]
[1761202626765,0.52489093,110230.0,110220.0,0.5107595]
[1761202626964,0.36857,110230.0,110220.0,0.5107595]
[1761202628354,0.36845,110230.0,110220.0,0.5107595]
[1761202629462,0.20221093,110250.0,110240.0,0.04503]
[1761202629663,0.21221093,110250.0,110240.0,0.04503]
[1761202629961,0.53465093,110250.0,110240.0,0.04503]
[1761202630165,0.21221093,110250.0,110240.0,0.04503]
[1761202630467,0.53465093,110250.0,110240.0,0.04503]
[1761202630762,0.21321093,110250.0,110240.0,0.04503]
[1761202630963,0.53565093,110250.0,110240.0,0.04503]
[1761202631155,0.93565093,110250.0,110230.0,0.40583]
[1761202631358,0.05958,110230.0,110220.0,0.40583]
[1761202631556,0.55461093,110230.0,110220.0,0.40583]
[1761202631864,0.55461093,110230.0,110220.0,0.4965306]
[1761202632163,0.41198,110230.0,110220.0,0.4965289]
[1761202632767,0.41198,110230.0,110220.0,0.5097589]
[1761202632966,0.38198,110230.0,110220.0,0.5097589]
[1761202633167,0.36829,110230.0,110220.0,0.5097589]
[1761202633666,0.36829,110230.0,110220.0,0.5107589]
[1761202634266,1.20141,110230.0,110220.0,0.5107589]
[1761202637363,0.87901,110230.0,110220.0,0.5107589]
[1761202637563,1.17866,110230.0,110220.0,0.5107589]
[1761202639077,0.34554,110230.0,110220.0,0.9107589]
[1761202642676,0.34554,110230.0,110220.0,1.02485945]
[1761202642976,0.36821,110230.0,110220.0,1.02485945]
[1761202643275,0.04589,110230.0,110220.0,1.02485945]
[1761202643477,0.36801,110230.0,110220.0,1.02485945]
[1761202644477,0.48211055,110230.0,110220.0,1.02485945]
[1761202645180,0.48211055,110230.0,110220.0,0.9107589]
[1761202645479,0.48211055,110230.0,110220.0,1.02485945]
[1761202646180,0.48211055,110230.0,110220.0,0.9107589]
[1761202646477,0.48211055,110230.0,110220.0,1.02485945]
[1761202646782,0.36801,110230.0,110220.0,1.02485945]
[1761202647477,0.48211055,110230.0,110220.0,1.02485945]
[1761202649573,0.48211055,110230.0,110220.0,0.9107589]
[1761202650380,0.36801,110230.0,110220.0,0.9107589]
[1761202650682,0.48211055,110230.0,110220.0,1.02485945]
[1761202654685,0.36801,110230.0,110220.0,1.02485945]
[1761202658085,0.32212,110230.0,110220.0,1.02485945]
[1761202658386,0.34493,110230.0,110220.0,1.02485945]
[1761202658685,0.36948,110230.0,110220.0,1.02485945]
[1761202660287,0.34493,110230.0,110220.0,1.02485945]
[1761202660486,0.04736,110230.0,110220.0,1.02485945]
[1761202660687,0.36888,110230.0,110220.0,1.02485945]
[1761202661085,0.04736,110230.0,110220.0,1.02485945]
[1761202661284,0.36888,110230.0,110220.0,1.02485945]
[1761202661592,0.04736,110230.0,110220.0,1.02485945]
[1761202661791,0.36888,110230.0,110220.0,1.02485945]
[1761202662593,0.48298055,110230.0,110220.0,1.02485945]
[1761202663090,0.36888,110230.0,110220.0,1.02485945]
[1761202663588,0.04736,110230.0,110220.0,1.02485945]
[1761202663790,0.99458055,110240.0,110230.0,0.1521923]
[1761202663991,1.31602055,110240.0,110230.0,0.5129923]
[1761202664293,0.99458055,110240.0,110230.0,0.4223]
[1761202664885,1.31598055,110240.0,110230.0,0.4223]
[1761202665192,0.99458055,110240.0,110230.0,0.4223]
[1761202665386,1.31598055,110240.0,110230.0,0.4223]
[1761202665586,1.31598055,110240.0,110230.0,0.5129923]
[1761202665892,0.99458055,110240.0,110230.0,0.5129923]
[1761202666096,0.48282055,110240.0,110230.0,0.5129923]
[1761202666392,0.48282055,110240.0,110230.0,0.4223]
[1761202666595,0.49631055,110240.0,110230.0,0.4223]
[1761202666798,0.17495055,110240.0,110230.0,0.4223]
[1761202666986,0.49631055,110240.0,110230.0,0.4223]
[1761202667182,0.49627055,110240.0,110230.0,0.4223]
[1761202667895,0.17495055,110240.0,110230.0,0.4223]
[1761202668094,0.17495055,110240.0,110230.0,0.5129923]
[1761202668691,0.48278055,110240.0,110230.0,0.5129923]
[1761202669099,0.16146055,110240.0,110230.0,0.5129923]
[1761202669296,0.48274055,110240.0,110230.0,0.5129923]
[1761202669596,0.16146055,110240.0,110230.0,0.5129923]
[1761202669798,0.48274055,110240.0,110230.0,0.5129923]
[1761202670099,0.16146055,110240.0,110230.0,0.5129923]
[1761202670295,0.48270055,110240.0,110230.0,0.5129923]
[1761202670498,0.48270055,110240.0,110230.0,0.4223]
[1761202670696,0.04736,110240.0,110230.0,0.4223]
[1761202670892,0.3686,110240.0,110230.0,0.4223]
[1761202671198,0.04736,110240.0,110230.0,0.4223]
[1761202671398,0.3686,110240.0,110230.0,0.4223]
[1761202671696,0.38205,110240.0,110230.0,0.4223]
[1761202671995,0.06085,110240.0,110230.0,0.4223]
[1761202672297,0.49615052,110240.0,110230.0,0.40788]
[1761202672797,0.49611052,110240.0,110230.0,0.40788]
[1761202673095,0.06217,110230.0,110220.0,0.04546]
[1761202673396,0.57707052,110230.0,110220.0,0.04546]
[1761202673593,0.57707052,110230.0,110220.0,0.02275]
[1761202674193,0.21627052,110230.0,110220.0,0.02275]
[1761202674393,0.21627052,110230.0,110220.0,0.40626]
[1761202675001,0.21627052,110230.0,110220.0,0.40726]
[1761202675595,0.21627052,110230.0,110220.0,0.40626]
[1761202675798,0.57707052,110230.0,110220.0,0.04546]
[1761202676000,0.21627052,110230.0,110220.0,0.04546]
[1761202676394,0.01423,110220.0,110210.0,0.42059]
[1761202676603,0.49751052,110220.0,110210.0,0.42059]
[1761202677006,0.50751052,110220.0,110210.0,0.42059]
[1761202677999,0.50751052,110220.0,110210.0,0.42159]
[1761202678403,0.39341,110220.0,110210.0,0.42159]
[1761202678596,0.50751052,110220.0,110210.0,0.42159]
[1761202680104,0.50751052,110220.0,110210.0,0.5122981]
[1761202680305,0.37918,110220.0,110210.0,0.5122981]
[1761202680709,0.36918,110220.0,110210.0,0.5122981]
[1761202682103,0.04794,110220.0,110210.0,0.62639862]
[1761202682306,0.18095985,110240.0,110230.0,0.04546]
[1761202682507,0.51199985,110240.0,110230.0,0.04546]
[1761202682703,0.07143,110240.0,110230.0,0.04546]
[1761202682903,0.3691,110240.0,110230.0,0.42059]
[1761202683104,0.3791,110240.0,110230.0,0.42059]
[1761202683309,0.49320052,110240.0,110230.0,0.42059]
[1761202684118,0.49420052,110240.0,110230.0,0.42059]
[1761202685005,0.3801,110240.0,110230.0,0.42059]
[1761202685210,0.49420052,110240.0,110230.0,0.42059]
[1761202686411,0.37002,110240.0,110230.0,0.5112816]
[1761202686613,0.04894,110240.0,110230.0,0.5112816]
[1761202686799,0.36998,110240.0,110230.0,0.5112816]
[1761202687199,0.37002,110240.0,110230.0,0.5112816]
[1761202687403,0.04894,110240.0,110230.0,0.5112816]
[1761202687599,0.36898,110240.0,110230.0,0.42059]